Cogmind - Beta 14 @@@ ROGUE MODE // 2024.08.25 @ 19:47:14 Player: Daffa0360 Result: Self-destructed Performance ------------- Evolutions (2) 1000 Regions Visited (5) 1000 Robots Destroyed (25) 125 Value Destroyed (551) 551 Prototype IDs (26) 520 Alien Tech Used (0) 0 Bonus (300) 300 TOTAL SCORE: 3496 Bonus ------- Aligned with FarCom 300 Cogmind --------- Core Integrity 401/550 Matter 300/300 Energy 100/100 System Corruption 0% Temperature Cool (0) Movement Core (150) Ox2 Location -8/Materials Parts ------- > --- POWER (1) -------- (None) > --- PROPULSION (2) --- (None) > --- UTILITY (6) ------ Small Storage Unit Seismic Detector Advanced Targeting Computer > --- WEAPON (2) ------- Heavy Hammer > --- INVENTORY (8) ---- Structural Scanner Improved Terrain Scanner AWS/Autocannon Signal Generator Peak State ------------ > --- POWER ------------ Ion Engine > --- PROPULSION ------- Aluminum Leg Compact Wheel > --- UTILITY ---------- Small Storage Unit Sensor Array Seismic Detector Advanced Targeting Computer > --- WEAPON ----------- EM Pulse Gun Light Cannon > --- INVENTORY -------- Structural Scanner Improved Terrain Scanner AWS/Autocannon Heavy Hammer Signal Generator [Rating: 15] Favorites ----------- Power Ion Engine Engine Ion Engine Propulsion Aluminum Leg Leg Aluminum Leg Wheel Compact Wheel Utility Small Storage Unit Device Sensor Array Storage Small Storage Unit Processor Salvage Targeting Computer Weapon Light Cannon Energy Gun EM Pulse Gun Energy Cannon Advanced Beam Cannon Ballistic Cannon Light Cannon Impact Weapon Heavy Hammer Build | -11 -10 -10 -10 -9 -8 ------- Run | Yrd Mat Min Exi Min Mat Slots Evolved 4 | . . . . . 4 Power . | . . . . . . Propulsion . | . . . . . . Utility 4 | . . . . . 4 Weapon . | . . . . . . Parts Attached 27 | 2 13 4 4 1 3 Power 3 | . 1 1 . 1 . Engine 3 | . 1 1 . 1 . Core . | . . . . . . Reactor . | . . . . . . Propulsion 8 | . 4 3 1 . . Treads . | . . . . . . Leg 5 | . 2 3 . . . Wheel 3 | . 2 . 1 . . Hover . | . . . . . . Flight . | . . . . . . Utility 5 | 1 2 . . . 2 Device 3 | 1 1 . . . 1 Storage . | . . . . . . Processor 2 | . 1 . . . 1 Hackware . | . . . . . . Protection . | . . . . . . Artifact . | . . . . . . Weapon 11 | 1 6 . 3 . 1 Energy Gun 6 | 1 3 . 2 . . Energy Cannon 2 | . 2 . . . . Ballistic Gun . | . . . . . . Ballistic Cannon 2 | . 1 . 1 . . Launcher . | . . . . . . Special Weapon . | . . . . . . Impact Weapon 1 | . . . . . 1 Slashing Weapon . | . . . . . . Piercing Weapon . | . . . . . . Special Melee Weapon . | . . . . . . Unidentified Prototypes 2 | . 2 . . . . Parts Lost 7 | . . 1 . . 6 Power 2 | . . 1 . . 1 Propulsion 2 | . . . . . 2 Utility 1 | . . . . . 1 Weapon 2 | . . . . . 2 Highest Loss Streak 6 | . . 1 . . 6 To Critical Strikes . | . . . . . . Average Slot Usage (%) 97 | . 99 99 95 100 67 Engine 13 | . 14 13 14 14 7 Leg 19 | . 15 27 20 14 8 Wheel 7 | . 11 . 7 14 7 Device 8 | . . 14 14 14 13 Storage 13 | . 14 14 14 14 9 Processor 5 | . 13 . . . 5 Energy Gun 14 | . 15 14 11 14 7 Energy Cannon 2 | . 4 . . . . Ballistic Cannon 10 | . 6 14 11 14 7 Peak Build Rating 15 | 8 13 8 12 11 15 Average Rating 9 | 6 11 7 8 10 12 On Entrance 8 | 6 7 8 8 10 11 Naked Turns . | . . . . . . Heaviest Build 17 | 12 16 16 17 16 17 Greatest Support 20 | 20 20 20 20 16 16 Greatest Overweight (x) 3 | . 3 . 1 . 3 Average Overweight (x) . | . . . . . . Largest Inventory Capacity 8 | 8 8 8 8 8 8 Average Capacity 8 | 8 8 8 8 8 8 Most Carried 8 | 8 8 8 8 8 8 Average Carried 7 | 6 7 7 7 7 7 Final Capacity 8 | 8 8 8 8 8 8 Final Carried 8 | 6 8 8 8 8 6 Class Distribution -------------------- 84% | Mutant 15% | Skirmisher Dominant Class ---------------- Mutant | -10/Materials Mutant | -10/Mines Mutant | -10/Exiles Skirmisher | -9/Mines Skirmisher | -8/Materials Resources | -11 -10 -10 -10 -9 -8 ----------- Run | Yrd Mat Min Exi Min Mat Matter Collected 525 | 220 81 148 . 40 36 Remotely . | . . . . . . Salvage Created 949 | 132 513 275 . . 29 Parts 68 | 8 35 21 . . 4 Haulers Intercepted 2 | . 2 . . . . Recyclers Shooed . | . . . . . . Parts Field Recycled . | . . . . . . Retrieved Matter . | . . . . . . Parts Self-Destructed . | . . . . . . Prevented . | . . . . . . Kills | -11 -10 -10 -10 -9 -8 ------- Run | Yrd Mat Min Exi Min Mat Combat Hostiles Destroyed 15 | . 7 6 . . 2 Guns 8 | . 3 4 . . 1 Cannons 5 | . 3 2 . . . AOE 1 | . . . . . 1 Classes Destroyed 6 | 2 4 . . . . Tunneler 4 | 3 . 1 . . . Hauler 2 | . 2 . . . . Recycler 2 | 1 1 . . . . Watcher 2 | . 2 . . . . Swarmer 5 | . 3 . . . 2 Grunt 10 | . 4 6 . . . Best Kill Streak 4 | 3 4 3 . . 2 Combat Bots Only 3 | . 3 2 . . 2 Max Kills in Single Turn 1 | 1 1 1 . . 1 Gunslinging . | . . . . . . Exploded 1 | . . . . . 1 Melee . | . . . . . . Uniques/NPCs Destroyed . | . . . . . . Combat | -11 -10 -10 -10 -9 -8 -------- Run | Yrd Mat Min Exi Min Mat Hostile Shots Fired 83 | . 34 27 . . 22 Missed 22 | . 9 8 . . 5 Damage Taken 935 | . 265 249 . . 421 Core 252 | . 73 30 . . 149 Absorbed by Shields . | . . . . . . Core Remaining (%) 79 | 100 . . . 58 . Volleys Fired 69 | 10 40 15 . . 4 Largest 2 | 2 2 2 . . 2 Hottest 113 | 90 113 75 . . 75 Shots Fired 131 | 20 75 30 . . 6 Gun 79 | 20 42 15 . . 2 Cannon 52 | . 33 15 . . 4 Launcher . | . . . . . . Special . | . . . . . . Kinetic 20 | . 1 15 . . 4 Thermal 55 | 20 35 . . . . Explosive . | . . . . . . Electromagnetic 56 | . 39 15 . . 2 Robot Hit Streak 12 | 5 10 12 . . 5 Robot Miss Streak 4 | 2 4 3 . . 1 Penetration Max . | . . . . . . Secondary Targets . | . . . . . . Shots Hit Robots 83 | 11 48 20 . . 4 Core Hits 39 | 5 20 12 . . 2 Critical Kills 1 | . 1 . . . . Critical Parts Destroyed . | . . . . . . Critical Strikes 2 | . 1 1 . . . Meltdown 1 | . 1 . . . . Blast 1 | . . 1 . . . Melee Attacks . | . . . . . . Impact . | . . . . . . Slashing . | . . . . . . Piercing . | . . . . . . Sneak Attacks . | . . . . . . Combat Hostiles . | . . . . . . Follow-up Attacks . | . . . . . . Damage Inflicted 1425 | 153 873 322 . . 77 Guns 879 | 153 524 178 . . 24 Cannons 509 | . 349 144 . . 16 Explosions 37 | . . . . . 37 Melee . | . . . . . . Ramming . | . . . . . . Kinetic 179 | . 19 144 . . 16 Thermal 546 | 153 356 . . . 37 Explosive . | . . . . . . Electromagnetic 700 | . 498 178 . . 24 Impact . | . . . . . . Slashing . | . . . . . . Piercing . | . . . . . . Highest Corruption . | . . . . . . Average Corruption . | . . . . . . Corruption Purged . | . . . . . . Corruption Blocked . | . . . . . . Overload Shots . | . . . . . . Overflow Damage 1 | . 1 . . . . Projectiles 1 | . 1 . . . . Explosions . | . . . . . . Melee . | . . . . . . Knockbacks 2 | . . 1 . . 1 Impact . | . . . . . . Kinetic 2 | . . 1 . . 1 Secondary . | . . . . . . Self-Inflicted Damage 17 | . . . . . 17 Shots 1 | . . . . . 1 Rammed . | . . . . . . Targets Rammed . | . . . . . . Kicked . | . . . . . . Crushed . | . . . . . . Highest Temperature 360 | 120 360 117 . . 11 Average Temperature 100 | 43 130 49 . . 9 Received Heat Transfer 231 | . 96 135 . . . Effects 1 | . 1 . . . . Energy Bleed 1 | . 1 . . . . Siege Activations . | . . . . . . Robots Corrupted . | . . . . . . Combat Hostiles . | . . . . . . Parts Fried 1 | . 1 . . . . Impact Corruptions . | . . . . . . Robots Melted 1 | . 1 . . . . Combat Hostiles 1 | . 1 . . . . Parts Melted 2 | . 2 . . . . Heat Transferred 1125 | 409 666 . . . 50 Parts Sabotaged . | . . . . . . Parts Stolen . | . . . . . . Parts Stripped . | . . . . . . Power Chain Reactions 1 | . . . . . 1 Alert | -11 -10 -10 -10 -9 -8 ------- Run | Yrd Mat Min Exi Min Mat Peak Influence 252 | 20 252 95 . . 61 Initial 24 | . 13 24 . . . Average 72 | 7 109 66 . . 5 Maximum Alert Level 1 | . 1 . . . . Low Security (%) 99 | 100 98 100 . 100 100 Level 1 . | . 1 . . . . Level 2 . | . . . . . . Level 3 . | . . . . . . Level 4 . | . . . . . . Level 5 . | . . . . . . High Security . | . . . . . . Max Security . | . . . . . . Squads Dispatched 1 | . . . . . 1 Investigation . | . . . . . . Extermination . | . . . . . . Reinforcement 1 | . . . . . 1 Assault . | . . . . . . Garrison . | . . . . . . Intercept . | . . . . . . Searches Triggered . | . . . . . . Construction Impeded . | . . . . . . Haulers Reinforced . | . . . . . . Active Scanning Responses . | . . . . . . Cargo Convoy Interrupts . | . . . . . . Stealth | -11 -10 -10 -10 -9 -8 --------- Run | Yrd Mat Min Exi Min Mat Distress Signals 2 | . 2 . . . . Communications Jammed . | . . . . . . Distress Signals . | . . . . . . Times Spotted 33 | . 19 6 . . 8 Peak Tracking Total 5 | . 4 2 . . 5 Tactical Retreats 1 | . 1 . . . . Traps | -11 -10 -10 -10 -9 -8 ------- Run | Yrd Mat Min Exi Min Mat Traps Triggered 2 | . 2 . . . . Indirectly . | . . . . . . Trap Hack Attempts . | . . . . . . Triggered . | . . . . . . Disarmed . | . . . . . . Reprogrammed . | . . . . . . Reused . | . . . . . . Traps Extracted . | . . . . . . Installed . | . . . . . . Triggered . | . . . . . . Machines | -11 -10 -10 -10 -9 -8 ---------- Run | Yrd Mat Min Exi Min Mat Machines Disabled 2 | . 2 . . . . Max in Single Turn 2 | . 2 . . . . Machines Repaired . | . . . . . . Machines Dismantled . | . . . . . . Machines Sabotaged . | . . . . . . Overloaded Fab Kills . | . . . . . . Hacking | -11 -10 -10 -10 -9 -8 --------- Run | Yrd Mat Min Exi Min Mat Machines Accessed 9 | . 8 . 1 . . Terminals 8 | . 8 . . . . Fabricators . | . . . . . . Repair Stations . | . . . . . . Recycling Units . | . . . . . . Scanalyzers . | . . . . . . Garrison Access . | . . . . . . Total Hacks 23 | . 22 . 1 . . Successful 17 | . 16 . 1 . . Failed 6 | . 6 . . . . Catastrophic . | . . . . . . Database Lockouts . | . . . . . . Manual 20 | . 19 . 1 . . Terminals 22 | . 22 . . . . Fabricators . | . . . . . . Repair Stations . | . . . . . . Recycling Units . | . . . . . . Scanalyzers . | . . . . . . Garrison Access . | . . . . . . Terminal Hacks 4 | . 3 . 1 . . Prototype ID Bank 1 | . 1 . . . . Alert Level 1 | . 1 . . . . Zone Layout 1 | . 1 . . . . Derelict Proto ID Bank 1 | . . . 1 . . Fabricator Hacks . | . . . . . . Repair Station Hacks . | . . . . . . Recycling Unit Hacks . | . . . . . . Scanalyzer . | . . . . . . Garrison Access Hacks . | . . . . . . Unauthorized Hacks 13 | . 13 . . . . Terminals 13 | . 13 . . . . Track 1 | . 1 . . . . Assimilate 1 | . 1 . . . . Botnet 3 | . 3 . . . . Operators 2 | . 2 . . . . Skim 6 | . 6 . . . . Fabricators . | . . . . . . Repair Stations . | . . . . . . Recycling Units . | . . . . . . Scanalyzers . | . . . . . . Garrison Access . | . . . . . . Data Cores Recovered . | . . . . . . Used . | . . . . . . Hacking Detections 5 | . 5 . . . . Full Trace Events . | . . . . . . Feedback Events . | . . . . . . Feedback Blocked . | . . . . . . Robot Schematics Acquired . | . . . . . . Robots Built . | . . . . . . Authchips . | . . . . . . Time . | . . . . . . Total Robot Build Rating . | . . . . . . Part Schematics Acquired . | . . . . . . Parts Built . | . . . . . . Authchips . | . . . . . . Time . | . . . . . . Total Part Build Rating . | . . . . . . Parts Repaired . | . . . . . . Time . | . . . . . . Parts Recycled . | . . . . . . Recycled Matter . | . . . . . . Retrieved Matter . | . . . . . . Retrieved Components . | . . . . . . Parts Scanalyzed . | . . . . . . Part Schematics Acquired . | . . . . . . Parts Damaged . | . . . . . . Bothacking | -11 -10 -10 -10 -9 -8 ------------ Run | Yrd Mat Min Exi Min Mat Used RIF Installer . | . . . . . . Robots Hacked . | . . . . . . Non-combat . | . . . . . . Combat . | . . . . . . Robot Hacks Applied . | . . . . . . Relay Couplers Released . | . . . . . . Fabnet Peak Effective % . | . . . . . . Robots Rewired . | . . . . . . Allies Hacked . | . . . . . . Hacks Repelled . | . . . . . . Allies | -11 -10 -10 -10 -9 -8 -------- Run | Yrd Mat Min Exi Min Mat Total Allies 1 | . 1 . . . . Largest Group 1 | . 1 1 1 1 1 Highest-Rated Group 10 | . 10 10 10 10 10 Highest-Rated Ally 10 | . 10 10 10 10 10 Total Orders 2 | . . 2 . . . STAY 1 | . . 1 . . . FOLLOW 1 | . . 1 . . . Ally Attacks . | . . . . . . Total Damage . | . . . . . . Kills . | . . . . . . Allies Corrupted . | . . . . . . Allies Melted . | . . . . . . Intel | -11 -10 -10 -10 -9 -8 ------- Run | Yrd Mat Min Exi Min Mat Robot Analysis Total . | . . . . . . Derelict Logs Recovered 1 | . . 1 . . . Drone Launches . | . . . . . . Drone Recoveries . | . . . . . . Exploration | -11 -10 -10 -10 -9 -8 ------------- Run | Yrd Mat Min Exi Min Mat Turns Passed 2695 | 88 1124 765 290 306 122 Spaces Moved 1812 | 28 600 550 255 287 92 Core 14 | . 1 . . . 13 Treads . | . . . . . . Legs 1102 | 28 424 541 109 . . Wheels 696 | . 175 9 146 287 79 Hover . | . . . . . . Flight . | . . . . . . Fastest Speed 100 | 120 100 100 100 100 100 Average Speed 124 | 120 149 119 108 100 113 Slowest Speed 200 | 120 200 120 120 100 200 Overloaded Moves . | . . . . . . Propulsion Burnouts . | . . . . . . Robots Hopped . | . . . . . . Cave-ins Triggered . | . . . . . . Exploration Rate (%) 53 | 3 95 99 60 53 12 Regions Visited 5 Branch Regions 3 Pre-discovered Areas 3 | . 2 . . 1 . Known Exits Taken . | . . . . . . Unknown Exits Taken 5 | 1 1 1 1 1 . Scrap Searched 4 | . . 1 . 3 . Spaces Dug . | . . . . . . Terrain Destroyed 6 | . . . . . 6 Melee . | . . . . . . Projectile . | . . . . . . AOE 6 | . . . . . 6 Terrain Rammed . | . . . . . . Walls Destroyed . | . . . . . . Machines Disabled . | . . . . . . Actions | -11 -10 -10 -10 -9 -8 --------- Run | Yrd Mat Min Exi Min Mat Total 2117 | 63 750 627 269 305 103 Wait 181 | 19 83 55 4 16 4 Move 1807 | 27 599 549 254 286 92 Hop . | . . . . . . Pick Up 13 | 3 7 1 1 1 . Fast Attach 10 | . 5 1 3 . 1 Attach 5 | 1 2 . . . 2 Detach . | . . . . . . Swap 12 | 1 6 3 1 1 . Drop 20 | 2 8 3 6 1 . Fire 69 | 10 40 15 . . 4 Melee . | . . . . . . Ram . | . . . . . . Kick . | . . . . . . Crush . | . . . . . . Escape Stasis . | . . . . . . Rewire . | . . . . . . Trap . | . . . . . . Miscellaneous . | . . . . . . Route ------- -11/Scrapyard -10/Materials (discovered 4 exits: *Mat x3 / [*Min]) -10/Mines (discovered 4 exits: *Mat x2 / *Exi / Sub) -10/Exiles -9/Mines -8/Materials History --------- Turn | Location | Event 1 | -11/Scrapyard | Discovered new exit (range 1) 89 | -11/Scrapyard | Entered Materials 312 | -10/Materials | Build established: Mutant 440 | -10/Materials | Discovered new exit (range 9) 641 | -10/Materials | Discovered new exit (range 4) 805 | -10/Materials | Discovered new exit (range 16) 977 | -10/Materials | Discovered new exit (range 12) 1028 | -10/Materials | Loaded intel: 1 repair station location 1086 | -10/Materials | Learned location of Storage (-9) 1187 | -10/Materials | Learned location of Mines (-9) 1213 | -10/Materials | Entered Mines 1213 | -10/Mines | Accompanied by 1 ally 1214 | -10/Mines | Identified exit to Materials 1271 | -10/Mines | Identified exit to Subcaves 1950 | -10/Mines | Deemed a non-threat by the Exiles lab entrance 1950 | -10/Mines | Discovered new exit (range 5) 1978 | -10/Mines | Entered Exiles 1978 | -10/Exiles | Accompanied by 1 ally 2007 | -10/Exiles | Met 8R-AWN 2028 | -10/Exiles | Met EX-HEX 2060 | -10/Exiles | Met EX-BIN 2074 | -10/Exiles | Aligned with FarCom system 2076 | -10/Exiles | Given EX-Vault access code 2103 | -10/Exiles | Opened EX-Vault 2113 | -10/Exiles | Found AWS/Autocannon 2132 | -10/Exiles | Warned to stay clear of 0b10 Research branches 2215 | -10/Exiles | Met EX-DEC 2255 | -10/Exiles | Discovered new exit (range 10) 2268 | -10/Exiles | Left Exiles lab with AWS/Autocannon 2268 | -10/Exiles | Entered Mines 2268 | -9/Mines | Accompanied by 1 ally 2557 | -9/Mines | Met a Derelict testing a Signal Generator 2560 | -9/Mines | Build established: Skirmisher 2565 | -9/Mines | Found Signal Generator 2566 | -9/Mines | Discovered new exit (range 5) 2574 | -9/Mines | Entered Materials 2574 | -8/Materials | Accompanied by 1 ally 2574 | -8/Materials | Evolved 4 slots: Utility x4 2696 | -8/Materials | Self-destructed Last Messages --------------- reinforcements to Terminal M003. 02672_ O-16 Technician locks terminal. 02673_ K-01 Serf collects debris. 02673_ Com. Wheel destroyed. 02673_ Lgt. Cannon destroyed. 02676_ K-01 Serf collects debris. 02679_ K-01 Serf destroyed. 02680_ K-01 Serf collects debris. 02681_ Acquired 10 matter. 02683_ Nuclear Reactor explodes. 02683_ Aluminum Leg destroyed. 02683_ Sensor Array destroyed. 02683_ S-10 Pest destroyed. 02683_ Terminal disabled. 02683_ O-16 Technician destroyed. 02684_ The unstable cave ceiling collapses. 02684_ K-01 Serf collects debris. 02687_ Nuclear Reactor explodes. 02687_ U-05 Engineer builds a Wall. 02687_ K-01 Serf collects debris. Map ----- +----------------------------------------------------+ | ???????????# """# # # #?????????????? | | ???????????# """# # # #?????????????? | | ???????????# + + # #?????????????? | | ???????????# # # # #?????????????? | | ???????????######## # # #?????????????? | | ????????????????### + # #?????????????? | | ?????????????####"#"""###### #?????????????? | | ?????????????# #^^#?????????????? | | ?????????????# #^^#?????????????? | | ?????????????# ! " # #?????????????? | | ?????????????# * " # #?????????????? | | ?????????????# * = " # +?????????????? | | ????????????## % # #?????????????? | | ???????????## """"### #?????????????? | | ??????????## " = % ##+#??????????? | | ??????????# # =% +??????????? | | ??????????# % = ! #??????????? | | ??????????# % """ ?#??????????? | | ?????????## ! """ #??????????? | | ?????????# !! """ ##+#+??????? | | ?????????# + ! +?????? | | ?????????## # / #?????? | | ?????????# # s ##?????????? | | ?????????## ##+####### #??????????? | | ??????????# # = #??????????????? | | ??????????# ##! @ #??????????????? | | ??????????##### ?# """ #??????????????? | | ????????????? ?# """"" #??????????????? | | ???????????? ?# """""t#??????????????? | | ??????????? ?# """"" k ?????????????? | | ??????????##### ?# """ ###????????????? | | ??????????????###/##?#######?#??????????????? | | ???????????????? ??????????????????????????? | | ???????????????? ??????????????????????????? | | ????????????????????????????????????????????? | | ????????????????????w???????????????????????? | | ????????????????????????????????????????????? | | ????????????????????????????????????????????? | | ????????????????????????????????????????????? | | ????????????????????????????????????????????? | | | | | | | | | | | | | | | | | | | | | +----------------------------------------------------+ Best States ------------- Heat Dissipation 31 Energy Generation 10 Energy Capacity 250 Matter Stores 300 Matter Capacity 300 Sight Range 16 Robot Scan Range 14 Terrain Scan Density 10 Evasion (%) 55 Targeting Accuracy 8 Salvage Targeting 1 Item Schematics ----------------- None Robot Schematics ------------------ None Fabricated ------------ Nothing Alien Tech Used ----------------- None Achievements -------------- None Challenges ------------ None Game ------ Seed XenonBladeNullifier Manual? 0 Play Time 00:14:43 Cumulative 68.7 hours Start 2024.08.25 @ 19:33:26 End 2024.08.25 @ 19:47:14 Sessions 1 Manual Loads 0 Difficulty Rogue Special Mode None Game No. 113 Rogue 109 Adventurer 4 Explorer 0 Win Type - Total 0 Types 0/0/0/0/0/0/0/0/0 Lore% 31 Gallery% 44 Achievement% 35 Wizard Run 0 Options --------- Layout 2 ASCII 0 Keyboard 0 Movement Mouse Keybinds 0 Fullscreen 2 Font 24/Smallcaps Map View 50x44 Zoom Use 0% Tactical HUD 1 Map Filters NONE Filters NONE Steam 1 RUN: d4f182cb-6aa0-4c4e-a33d-c2ab85a1fb54